Cogmind - Beta 15 @@@ ROGUE MODE // 2025.08.20 @ 03:13:01 Player: Naughtyusername Result: Self-destructed Performance ------------- Evolutions (6) 3000 Regions Visited (15) 3000 Robots Destroyed (19) 95 Value Destroyed (447) 447 Prototype IDs (43) 860 Alien Tech Used (2) 400 Bonus (1400) 1400 TOTAL SCORE: 9202 Bonus ------- Registered with UFD 300 Met Optimus in HQ 500 Met Data Miner 300 Met Zhirov 300 Cogmind --------- Core Integrity 872/1150 Matter 275/300 Energy 271/295 System Corruption 0% Temperature Cool (0) Movement Flying (114) Ox1 Location -4/Factory Parts ------- > --- POWER (1) -------- Fusion Reactor > --- PROPULSION (8) --- Cooled Cesium-ion Thruster Nuclear Pulse Array > --- UTILITY (8) ------ Small Storage Unit Deep Structural Scanner Improved Signal Interpreter Advanced ECM Suite Hacking Suite Advanced Hacking Suite Advanced System Shield > --- WEAPON (2) ------- Lance > --- INVENTORY (8) ---- Advanced Power Amplifier Experimental Cooling System Enhanced Optical Array Advanced Sensor Array Advanced Terrain Scan Processor Graphene Brace Heavy Shock Bomb Launcher Improved Plasma Cutter Peak State ------------ > --- POWER ------------ Fusion Reactor > --- PROPULSION ------- Nuclear Pulse Thruster Nuclear Pulse Thruster Cooled Cesium-ion Thruster Nuclear Pulse Array Nuclear Pulse Array Impulse Thruster > --- UTILITY ---------- Experimental Cooling System Small Storage Unit Deep Structural Scanner Advanced Sensor Array Improved Signal Interpreter Hacking Suite Advanced Hacking Suite Advanced System Shield > --- WEAPON ----------- Phase Cannon Lance > --- INVENTORY -------- Advanced Power Amplifier Enhanced Optical Array Advanced Terrain Scan Processor Advanced ECM Suite Mapping Drone Bay Transdimensional Reconstructor Heavy Shock Bomb Launcher Improved Plasma Cutter [Rating: 106] Favorites ----------- Power Light Nuclear Core Engine Angular Momentum Engine Power Core Light Nuclear Core Reactor Fusion Reactor Propulsion Nuclear Pulse Thruster Leg Aluminum Leg Wheel Wheel Flight Unit Nuclear Pulse Thruster Utility Small Storage Unit Device Advanced Sensor Array Storage Small Storage Unit Processor Improved Signal Interpreter Hackware Advanced System Shield Protection Experimental Power Shielding Weapon EM Shotgun Energy Gun EM Shotgun Energy Cannon Phase Cannon Launcher Grenade Launcher Impact Weapon Mace Piercing Weapon Lance Build | -11 -10 -10 -9 -9 -6 -6 -6 -6 -5 -5 -5 -5 -5 -4 -4 ------- Run | Yrd Mat Sub Rec Scr Fac Low Low Dat Pro Fac Upp Upp Zhi Pro Fac Slots Evolved 12 | . . . . . 8 . . . . 2 . . . . 2 Power . | . . . . . . . . . . . . . . . . Propulsion 6 | . . . . . 4 . . . . 1 . . . . 1 Utility 6 | . . . . . 4 . . . . 1 . . . . 1 Weapon . | . . . . . . . . . . . . . . . . Parts Attached 55 | . 10 3 1 8 13 . . . . 12 . 1 3 . 4 Power 4 | . 1 . 1 . 1 . . . . . . . 1 . . Engine 1 | . . . . . 1 . . . . . . . . . . Core 2 | . 1 . 1 . . . . . . . . . . . . Reactor 1 | . . . . . . . . . . . . . 1 . . Propulsion 17 | . 3 2 . 3 5 . . . . 3 . . . . 1 Treads . | . . . . . . . . . . . . . . . . Leg 1 | . 1 . . . . . . . . . . . . . . Wheel 4 | . 2 2 . . . . . . . . . . . . . Hover . | . . . . . . . . . . . . . . . . Flight 12 | . . . . 3 5 . . . . 3 . . . . 1 Utility 25 | . 2 . . 4 7 . . . . 7 . . 2 . 3 Device 11 | . . . . 2 3 . . . . 4 . . . . 2 Storage 3 | . 1 . . 2 . . . . . . . . . . . Processor 3 | . 1 . . . 2 . . . . . . . . . . Hackware 7 | . . . . . 2 . . . . 3 . . 1 . 1 Protection 1 | . . . . . . . . . . . . . 1 . . Artifact . | . . . . . . . . . . . . . . . . Weapon 9 | . 4 1 . 1 . . . . . 2 . 1 . . . Energy Gun 4 | . 4 . . . . . . . . . . . . . . Energy Cannon 1 | . . . . . . . . . . 1 . . . . . Ballistic Gun . | . . . . . . . . . . . . . . . . Ballistic Cannon . | . . . . . . . . . . . . . . . . Launcher 2 | . . 1 . . . . . . . . . 1 . . . Special Weapon . | . . . . . . . . . . . . . . . . Impact Weapon 1 | . . . . 1 . . . . . . . . . . . Slashing Weapon . | . . . . . . . . . . . . . . . . Piercing Weapon 1 | . . . . . . . . . . 1 . . . . . Special Melee Weapon . | . . . . . . . . . . . . . . . . Unidentified Prototypes 4 | . . . . . . . . . . 1 . . 3 . . Parts Lost 10 | . . . 1 . 3 . . . . . . . . . 6 Power 1 | . . . 1 . . . . . . . . . . . . Propulsion 6 | . . . . . 2 . . . . . . . . . 4 Utility 2 | . . . . . 1 . . . . . . . . . 1 Weapon 1 | . . . . . . . . . . . . . . . 1 Highest Loss Streak 4 | . . . 1 . 2 . . . . . . . . . 4 To Critical Strikes . | . . . . . . . . . . . . . . . . Average Backups 7 | 2 6 8 7 7 6 6 6 7 7 7 8 8 7 8 7 Power . | . 1 1 . . . 1 1 1 1 . . . . . . Propulsion . | 1 2 2 2 1 . . . . . . . . . . . Utility 4 | . 2 4 4 4 4 5 5 5 5 5 6 6 5 5 4 Weapon . | . . 1 1 . . . . . . . 1 1 1 1 1 Tool/Special . | . . . . . . . . . . . . . . . . Unused Backups 20 | . 1 1 . 7 3 . . . . 3 . . 1 . 4 Power 2 | . 1 . . . . . . . . 1 . . . . . Propulsion 2 | . . 1 . 1 . . . . . . . . . . . Utility 13 | . . . . 5 3 . . . . 1 . . 1 . 3 Weapon 2 | . . . . 1 . . . . . 1 . . . . . Tool/Special 1 | . . . . . . . . . . . . . . . 1 Average Slot Usage (%) 90 | . 65 100 99 90 89 99 100 100 100 92 88 88 88 88 79 Engine 1 | . . . . . 2 6 6 6 6 5 5 5 2 . . Core 6 | . 5 14 13 13 3 . . . . . . . . . . Wheel 9 | . 20 28 28 16 . . . . . . . . . . . Flight 20 | . . . . 10 32 40 40 40 40 35 29 29 29 29 24 Device 10 | . . . . 5 14 12 13 13 13 16 17 17 17 17 17 Storage 9 | . 11 14 14 12 6 6 6 6 6 5 5 5 5 5 5 Processor 7 | . 11 14 14 8 5 6 6 6 6 5 5 5 5 5 5 Hackware 5 | . . . . . 10 13 13 13 13 11 11 11 11 11 12 Energy Gun 9 | . 15 25 28 16 . . . . . . . . . . . Energy Cannon 1 | . . . . . . . . . . 4 5 5 5 5 3 Impact Weapon 2 | . . . . 4 6 6 6 6 6 . . . . . . Piercing Weapon 1 | . . . . . . . . . . 3 5 4 5 5 4 Peak Build Rating 106 | . 12 12 12 17 52 54 54 54 54 89 93 93 96 96 106 Average Rating 43 | . 7 11 11 13 41 53 54 54 54 77 91 89 93 96 93 On Entrance 48 | . . 12 11 12 17 50 54 54 54 54 89 93 89 96 96 Naked Turns 17 | . 11 . . 6 . . . . . . . . . . . Heaviest Build 32 | . 16 16 16 31 25 25 25 25 25 32 32 32 32 31 32 Greatest Support 54 | 3 16 26 20 20 35 34 34 34 34 47 44 44 44 44 54 Greatest Overweight (x) 1 | . . . . 1 . . . . . . . . . . . Average Overweight (x) . | . . . . . . . . . . . . . . . . Largest Inventory Capacity 15 | 5 8 8 8 15 8 8 8 8 8 8 8 8 8 8 8 Average Capacity 8 | 5 7 8 8 10 8 8 8 8 8 8 8 8 8 8 8 Most Carried 9 | 4 8 8 8 9 8 7 7 7 7 8 8 8 8 8 8 Average Carried 7 | 2 6 8 7 7 6 6 6 7 7 7 8 8 7 8 7 Final Capacity 8 | 5 8 8 8 8 8 8 8 8 8 8 8 8 8 8 8 Final Carried 8 | 4 8 8 8 8 7 6 7 7 7 8 8 8 8 8 8 Class Distribution -------------------- 48% | Mutant 29% | Hacker-Scout 15% | Hacker-Sprinter 4% | Scout Dominant Class ---------------- Mutant | -10/Materials Mutant | -10/Subcaves Mutant | -9/Recycling Mutant | -9/Scraptown Hacker-Sprinter | -6/Factory Hacker-Scout | -6/Lower Caves Hacker-Scout | -6/Lower Caves Hacker-Scout | -6/Data Miner Hacker-Scout | -5/Proximity Caves Hacker-Scout | -5/Factory Hacker-Sprinter | -5/Upper Caves Hacker-Scout | -5/Upper Caves Hacker-Scout | -5/Zhirov Hacker-Scout | -4/Proximity Caves Hacker-Scout | -4/Factory Resources | -11 -10 -10 -9 -9 -6 -6 -6 -6 -5 -5 -5 -5 -5 -4 -4 ----------- Run | Yrd Mat Sub Rec Scr Fac Low Low Dat Pro Fac Upp Upp Zhi Pro Fac Matter Collected 1224 | 200 250 . 62 120 175 20 . . . . 238 74 70 . 15 Remotely . | . . . . . . . . . . . . . . . . Salvage Created 1641 | . 104 92 203 . 305 24 . . . 196 191 88 438 . . Parts 49 | . 7 3 18 . 2 . . . . 3 4 5 7 . . Haulers Intercepted 6 | . 1 . . . 3 . . . . 2 . . . . . Recyclers Shooed . | . . . . . . . . . . . . . . . . Parts Field Recycled . | . . . . . . . . . . . . . . . . Retrieved Matter . | . . . . . . . . . . . . . . . . Parts Self-Destructed 21 | . . 8 . . . 4 . . . . . 5 4 . . Prevented 2 | . . . . . . . . . . . . 2 . . . Kills | -11 -10 -10 -9 -9 -6 -6 -6 -6 -5 -5 -5 -5 -5 -4 -4 ------- Run | Yrd Mat Sub Rec Scr Fac Low Low Dat Pro Fac Upp Upp Zhi Pro Fac Combat Hostiles Destroyed 9 | . 1 2 3 . . . . . . . . 3 . . . Guns 5 | . . 2 3 . . . . . . . . . . . . AOE 4 | . 1 . . . . . . . . . . 3 . . . Classes Destroyed 9 | . 3 1 1 . 1 . . . . . 2 1 . . . Builder 3 | . 1 . 2 . . . . . . . . . . . . Hauler 6 | . 1 . . . 3 . . . . 2 . . . . . Watcher 1 | . . . . . 1 . . . . . . . . . . Swarmer 3 | . . . . . . . . . . . . 3 . . . Grunt 1 | . 1 . . . . . . . . . . . . . . Sentry 3 | . . . 3 . . . . . . . . . . . . Subdweller 2 | . . 2 . . . . . . . . . . . . . Packrat 1 | . . . . . . . . . . . 1 . . . . Samaritan 2 | . . . . . . . . . . . 2 . . . . Best Kill Streak 3 | . 3 1 2 . 2 . . . . 1 . 3 . . . Combat Bots Only 3 | . 1 1 2 . . . . . . . . 3 . . . Max Kills in Single Turn 3 | . 2 1 1 . 1 . . . . 1 1 3 . . . Gunslinging . | . . . . . . . . . . . . . . . . Exploded 3 | . 1 . . . . . . . . . . 3 . . . Melee . | . . . . . . . . . . . . . . . . Uniques/NPCs Destroyed . | . . . . . . . . . . . . . . . . Combat | -11 -10 -10 -9 -9 -6 -6 -6 -6 -5 -5 -5 -5 -5 -4 -4 -------- Run | Yrd Mat Sub Rec Scr Fac Low Low Dat Pro Fac Upp Upp Zhi Pro Fac Hostile Shots Fired 108 | . 3 4 12 . 21 . . . 2 24 9 15 . . 18 Missed 61 | . 2 . 9 . 14 . . . 1 12 5 9 . . 9 Hits 47 | . 1 4 3 . 7 . . . 1 12 4 6 . . 9 Projectile 47 | . 1 4 3 . 7 . . . 1 12 4 6 . . 9 Critical Strikes 2 | . . . . . . . . . . 2 . . . . . Damage Taken 1237 | . 11 97 40 . 93 . . . 20 288 86 92 . . 510 Core 290 | . . . . . . . . . . 38 68 . . . 184 Absorbed by Shields . | . . . . . . . . . . . . . . . . Regen/Repaired (Parts) 44 | . . . . . . . . . . . . . . . 44 Core Remaining (%) 97 | 100 . . . 100 . . . . 100 . . . . 89 . Volleys Fired 64 | . 3 7 9 . . . . . . 10 19 4 . 9 3 Largest 2 | . 2 2 2 . . . . . . 1 1 1 . 1 1 Hottest 90 | . 90 90 90 . . . . . . 85 85 85 . 85 85 Shots Fired 81 | . 6 12 18 . . . . . . 10 19 4 . 9 3 Gun 34 | . 6 10 18 . . . . . . . . . . . . Cannon 43 | . . . . . . . . . . 10 19 2 . 9 3 Launcher 4 | . . 2 . . . . . . . . . 2 . . . Special . | . . . . . . . . . . . . . . . . Kinetic . | . . . . . . . . . . . . . . . . Thermal 43 | . . . . . . . . . . 10 19 2 . 9 3 Explosive 2 | . . 2 . . . . . . . . . . . . . Electromagnetic 36 | . 6 10 18 . . . . . . . . 2 . . . Robot Hit Streak 14 | . 5 7 14 . . . . . . 2 . 3 . . . Robot Miss Streak 2 | . 2 1 2 . . . . . . . . . . . . Penetration Max . | . . . . . . . . . . . . . . . . Secondary Targets 1 | . . . 1 . . . . . . . . . . . . Max Gunslinging Chain 1 | . . . 1 . . . . . . . . . . . . Shots Hit Robots 68 | . 5 9 17 . 8 2 . . . 11 4 1 11 . . Core Hits 33 | . 5 3 11 . . 2 . . . 1 1 5 5 . . Critical Kills . | . . . . . . . . . . . . . . . . Critical Parts Destroyed 4 | . . . . . 3 . . . . 1 . . . . . Critical Strikes 6 | . . . . . 3 . . . . 1 1 . 1 . . Smash 4 | . . . . . 3 . . . . 1 . . . . . Impale 2 | . . . . . . . . . . . 1 . 1 . . Melee Attacks 127 | . . . . . 48 3 5 . 1 34 5 1 11 2 17 Impact 66 | . . . . . 48 3 5 . 1 9 . . . . . Slashing . | . . . . . . . . . . . . . . . . Piercing 61 | . . . . . . . . . . 25 5 1 11 2 17 Sneak Attacks 11 | . . . . . 4 . . . . 3 4 . . . . Combat Hostiles . | . . . . . . . . . . . . . . . . Follow-up Attacks . | . . . . . . . . . . . . . . . . Damage Inflicted 3208 | . 261 127 299 . 486 162 . . . 525 296 175 877 . . Guns 476 | . 113 118 245 . . . . . . . . . . . . Cannons 29 | . . . . . . . . . . 29 . . . . . Explosions 377 | . 148 . 54 . . . . . . . . 175 . . . Melee 2317 | . . . . . 486 162 . . . 496 296 . 877 . . Ramming 9 | . . 9 . . . . . . . . . . . . . Kinetic . | . . . . . . . . . . . . . . . . Thermal 231 | . 148 . 54 . . . . . . 29 . . . . . Explosive . | . . . . . . . . . . . . . . . . Electromagnetic 651 | . 113 118 245 . . . . . . . . 175 . . . Impact 930 | . . . . . 486 162 . . . 282 . . . . . Slashing . | . . . . . . . . . . . . . . . . Piercing 1387 | . . . . . . . . . . 214 296 . 877 . . Highest Corruption 1 | . . . 1 . . . . . . . . . . . . Average Corruption 1 | . . . 1 . . . . . . . . . . . . Corruption Purged . | . . . . . . . . . . . . . . . . Corruption Blocked . | . . . . . . . . . . . . . . . . Effects 1 | . . . 1 . . . . . . . . . . . . Message Errors 1 | . . . 1 . . . . . . . . . . . . Overload Shots . | . . . . . . . . . . . . . . . . Overflow Damage 636 | . . . . . 294 . . . . 94 222 . 26 . . Projectiles . | . . . . . . . . . . . . . . . . Explosions . | . . . . . . . . . . . . . . . . Melee 636 | . . . . . 294 . . . . 94 222 . 26 . . Knockbacks . | . . . . . . . . . . . . . . . . Impact . | . . . . . . . . . . . . . . . . Kinetic . | . . . . . . . . . . . . . . . . Secondary . | . . . . . . . . . . . . . . . . Self-Inflicted Damage 23 | . . 23 . . . . . . . . . . . . . Shots 1 | . . 1 . . . . . . . . . . . . . Rammed 1 | . . 1 . . . . . . . . . . . . . Targets Rammed 1 | . . 1 . . . . . . . . . . . . . Kicked . | . . . . . . . . . . . . . . . . Crushed . | . . . . . . . . . . . . . . . . Highest Temperature 364 | . 78 1 109 . 96 276 192 126 186 364 262 72 . . 26 Average Temperature 76 | . 35 1 44 . 36 104 69 63 117 89 132 40 . . 26 Received Heat Transfer 231 | . 6 18 18 . 9 . . . 9 129 9 . . . 33 Effects 7 | . . . . . . 4 . . . 1 2 . . . . Energy Bleed 1 | . . . . . . 1 . . . . . . . . . Interference 5 | . . . . . . 3 . . . . 2 . . . . Matter Decay 1 | . . . . . . . . . . 1 . . . . . Siege Activations . | . . . . . . . . . . . . . . . . Martial Activations . | . . . . . . . . . . . . . . . . Shielding Activations . | . . . . . . . . . . . . . . . . Robots Disrupted . | . . . . . . . . . . . . . . . . Combat Hostiles . | . . . . . . . . . . . . . . . . Robots Corrupted 6 | . . . . . 4 . . . . 2 . . . . . Combat Hostiles . | . . . . . . . . . . . . . . . . Parts Fried 8 | . . . 3 . 2 . . . . 3 . . . . . Impact Corruptions 10 | . . . . . 8 . . . . 2 . . . . . Robots Melted . | . . . . . . . . . . . . . . . . Combat Hostiles . | . . . . . . . . . . . . . . . . Parts Melted 3 | . . 3 . . . . . . . . . . . . . Heat Transferred 337 | . 200 . 100 . . . . . . 37 . . . . . Parts Sabotaged . | . . . . . . . . . . . . . . . . Parts Stolen . | . . . . . . . . . . . . . . . . Parts Stripped . | . . . . . . . . . . . . . . . . Power Chain Reactions 3 | . 1 . 2 . . . . . . . . . . . . Alert | -11 -10 -10 -9 -9 -6 -6 -6 -6 -5 -5 -5 -5 -5 -4 -4 ------- Run | Yrd Mat Sub Rec Scr Fac Low Low Dat Pro Fac Upp Upp Zhi Pro Fac Maximum Alert Level 1 | . . . . . . . . . . 1 . . . . 1 Low Security (%) 86 | 100 100 . 100 . 100 . . . . 42 . . . . 97 Level 1 13 | . . . . . . . . . . 58 . . . . 2 Level 2 . | . . . . . . . . . . . . . . . . Level 3 . | . . . . . . . . . . . . . . . . Level 4 . | . . . . . . . . . . . . . . . . Level 5 . | . . . . . . . . . . . . . . . . High Security . | . . . . . . . . . . . . . . . . Max Security . | . . . . . . . . . . . . . . . . Peak Influence 377 | . 39 . 129 . 68 . . . . 377 . . . . 215 Initial 325 | . . . 7 . . . . . . 325 . . . . 150 Average 86 | . 7 . 66 . 20 . . . . 212 . . . . 108 Influence Increases 2088 | . 46 15 370 . 357 . . . 60 619 120 150 15 . 336 Destroy 0b10 Robot/C 140 | . 20 . 60 . . . . . . . . 60 . . . Destroy 0b10 Robot/NC 65 | . 10 . 10 . 20 . . . . 10 . . 15 . . Destroy Leader 24 | . 12 . . . 8 . . . . 4 . . . . . Successful Hack 241 | . . . 50 . 43 . . . . 137 . . . . 11 Select Force Hacks 240 | . . . 240 . . . . . . . . . . . . Destroy Structure 133 | . 4 . 10 . 31 . . . . 48 . . . . 40 Advance Influence 450 | . . . . . . . . . . 300 . . . . 150 Partial Spotted 135 | . . . . . 75 . . . . 15 . . . . 45 Lose Combat Pursuer 660 | . . 15 . . 180 . . . 60 105 120 90 . . 90 Influence Decreases 2088 | . 20 26 293 92 297 60 . . 20 556 169 169 50 . 336 Entered New Map 237 | . . 14 8 92 . 23 . . . 15 39 11 35 . . Time Decay 1246 | . 20 12 278 . 217 37 . . 20 229 130 158 15 . 130 Lost Part 93 | . . . 7 . 30 . . . . . . . . . 56 Lost Ally 17 | . . . . . 5 . . . . 12 . . . . . Purge Threat 495 | . . . . . 45 . . . . 300 . . . . 150 Squads Dispatched 31 | . 1 . . . 10 . . . . 15 . . . . 5 Investigation 23 | . 1 . . . 7 . . . . 12 . . . . 3 Extermination 5 | . . . . . 2 . . . . 2 . . . . 1 Reinforcement 3 | . . . . . 1 . . . . 1 . . . . 1 Assault . | . . . . . . . . . . . . . . . . Garrison . | . . . . . . . . . . . . . . . . Intercept . | . . . . . . . . . . . . . . . . Searches Triggered . | . . . . . . . . . . . . . . . . Data Miner Redirects 2 | . . . . . . . . . . . . . . . 2 Construction Impeded . | . . . . . . . . . . . . . . . . Haulers Reinforced 1 | . . . . . 1 . . . . . . . . . . Active Scanning Responses . | . . . . . . . . . . . . . . . . Cargo Convoy Interrupts . | . . . . . . . . . . . . . . . . Stealth | -11 -10 -10 -9 -9 -6 -6 -6 -6 -5 -5 -5 -5 -5 -4 -4 --------- Run | Yrd Mat Sub Rec Scr Fac Low Low Dat Pro Fac Upp Upp Zhi Pro Fac Distress Signals 10 | . 1 . . . . . . . 1 5 . . . 1 2 Communications Jammed . | . . . . . . . . . . . . . . . . Distress Signals . | . . . . . . . . . . . . . . . . Times Spotted 95 | . 5 9 3 . 18 . . . 4 24 4 10 . . 18 Peak Tracking Total 13 | . 2 6 1 . 7 . . . 4 13 5 5 . 1 9 Tactical Retreats 22 | . . 1 . . 6 . . . 2 3 6 2 . . 2 Traps | -11 -10 -10 -9 -9 -6 -6 -6 -6 -5 -5 -5 -5 -5 -4 -4 ------- Run | Yrd Mat Sub Rec Scr Fac Low Low Dat Pro Fac Upp Upp Zhi Pro Fac Traps Triggered 3 | . . . . . . . . . . 2 . . . . 1 Indirectly . | . . . . . . . . . . . . . . . . Trap Hack Attempts . | . . . . . . . . . . . . . . . . Triggered . | . . . . . . . . . . . . . . . . Disarmed . | . . . . . . . . . . . . . . . . Reprogrammed . | . . . . . . . . . . . . . . . . Reused . | . . . . . . . . . . . . . . . . Traps Extracted . | . . . . . . . . . . . . . . . . Installed . | . . . . . . . . . . . . . . . . Triggered . | . . . . . . . . . . . . . . . . Machines | -11 -10 -10 -9 -9 -6 -6 -6 -6 -5 -5 -5 -5 -5 -4 -4 ---------- Run | Yrd Mat Sub Rec Scr Fac Low Low Dat Pro Fac Upp Upp Zhi Pro Fac Machines Disabled . | . . . . . . . . . . . . . . . . Max in Single Turn . | . . . . . . . . . . . . . . . . Garrison Access 1 | . . . . . . . . . . 1 . . . . . Machines Repaired . | . . . . . . . . . . . . . . . . Machines Dismantled . | . . . . . . . . . . . . . . . . Machines Sabotaged . | . . . . . . . . . . . . . . . . Overloaded Fab Kills . | . . . . . . . . . . . . . . . . Hacking | -11 -10 -10 -9 -9 -6 -6 -6 -6 -5 -5 -5 -5 -5 -4 -4 --------- Run | Yrd Mat Sub Rec Scr Fac Low Low Dat Pro Fac Upp Upp Zhi Pro Fac Machines Accessed 77 | . . . 13 8 14 . . 4 . 25 . . 4 1 8 Terminals 27 | . . . 5 . 6 . . . . 10 . . . 1 5 Fabricators 6 | . . . . . 2 . . . . 4 . . . . . Repair Stations 1 | . . . . . . . . . . . . . . . 1 Recycling Units 21 | . . . 8 . 4 . . . . 8 . . . . 1 Scanalyzers 4 | . . . . . 1 . . . . 2 . . . . 1 Garrison Access 2 | . . . . . 1 . . . . 1 . . . . . Total Hacks 343 | . . . 28 67 56 . . 30 . 110 . . 17 1 34 Successful 250 | . . . 19 67 30 . . 30 . 67 . . 17 1 19 Failed 93 | . . . 9 . 26 . . . . 43 . . . . 15 Catastrophic 12 | . . . 1 . 5 . . . . 3 . . . . 3 Database Lockouts . | . . . . . . . . . . . . . . . . Manual 115 | . . . 11 . 33 . . . . 52 . . . . 19 Terminals 153 | . . . 15 . 39 . . . . 72 . . . 1 26 Fabricators 18 | . . . . . 5 . . . . 13 . . . . . Repair Stations 1 | . . . . . . . . . . . . . . . 1 Recycling Units 43 | . . . 13 . 6 . . . . 19 . . . . 5 Scanalyzers 11 | . . . . . 4 . . . . 5 . . . . 2 Garrison Access 3 | . . . . . 2 . . . . 1 . . . . . Terminal Hacks 166 | . . . 6 67 14 . . 30 . 22 . . 17 1 9 Record 77 | . . . . 59 . . . 11 . . . . 5 1 1 Part Schematic 20 | . . . 2 . 1 . . 11 . 2 . . 4 . . Robot Schematic 5 | . . . . . . . . 5 . . . . . . . Robot Analysis 16 | . . . . 8 4 . . . . . . . 4 . . Prototype ID Bank 15 | . . . 3 . 1 . . 3 . 3 . . 4 . 1 Branch Access Points 1 | . . . . . 1 . . . . . . . . . . Emergency Access Points 1 | . . . . . . . . . . . . . . . 1 Terminal Index 3 | . . . . . 1 . . . . 1 . . . . 1 Fabricator Index 1 | . . . . . . . . . . 1 . . . . . Unreport Threat 4 | . . . . . 1 . . . . 2 . . . . 1 Locate Traps 2 | . . . . . 1 . . . . 1 . . . . . Dispatch Records 3 | . . . . . 1 . . . . 2 . . . . . Security Status 1 | . . . . . . . . . . 1 . . . . . Patrol Status 1 | . . . . . . . . . . 1 . . . . . Recall Investigation 1 | . . . . . . . . . . 1 . . . . . Recall Extermination 3 | . . . . . 1 . . . . 2 . . . . . Recall Reinforcements 1 | . . . . . . . . . . 1 . . . . . Hauler Manifests 1 | . . . . . 1 . . . . . . . . . . Registered Components 3 | . . . 1 . . . . . . 1 . . . . 1 Registered Prototypes 2 | . . . . . . . . . . 1 . . . . 1 Zone Layout 5 | . . . . . 1 . . . . 2 . . . . 2 Fabricator Hacks 7 | . . . . . 1 . . . . 6 . . . . . Network Status 1 | . . . . . . . . . . 1 . . . . . Load Schematic 2 | . . . . . . . . . . 2 . . . . . Build 4 | . . . . . 1 . . . . 3 . . . . . Repair Station Hacks . | . . . . . . . . . . . . . . . . Recycling Unit Hacks 10 | . . . 3 . . . . . . 6 . . . . 1 Retrieve Components 10 | . . . 3 . . . . . . 6 . . . . 1 Scanalyzer 8 | . . . . . 2 . . . . 5 . . . . 1 Insert Component 6 | . . . . . 1 . . . . 4 . . . . 1 Analyze 2 | . . . . . 1 . . . . 1 . . . . . Garrison Access Hacks 1 | . . . . . . . . . . 1 . . . . . Seal Access 1 | . . . . . . . . . . 1 . . . . . Unauthorized Hacks 58 | . . . 10 . 13 . . . . 27 . . . . 8 Terminals 36 | . . . 2 . 9 . . . . 19 . . . . 6 Track 2 | . . . . . 1 . . . . 1 . . . . . Assimilate 4 | . . . . . 1 . . . . 3 . . . . . Botnet 15 | . . . . . 3 . . . . 8 . . . . 4 Operators 2 | . . . . . 1 . . . . 1 . . . . . Skim 13 | . . . 2 . 3 . . . . 6 . . . . 2 Fabricators 1 | . . . . . . . . . . 1 . . . . . Haulers 1 | . . . . . . . . . . 1 . . . . . Repair Stations 1 | . . . . . . . . . . . . . . . 1 Patch 1 | . . . . . . . . . . . . . . . 1 Recycling Units 20 | . . . 8 . 4 . . . . 7 . . . . 1 Tunnel 8 | . . . 8 . . . . . . . . . . . . Fedlink 12 | . . . . . 4 . . . . 7 . . . . 1 Scanalyzers . | . . . . . . . . . . . . . . . . Garrison Access . | . . . . . . . . . . . . . . . . Data Cores Recovered . | . . . . . . . . . . . . . . . . Used . | . . . . . . . . . . . . . . . . Hacking Detections 44 | . . . 8 . 10 . . . . 19 . . . . 7 Full Trace Events 11 | . . . 3 . 3 . . . . 4 . . . . 1 Feedback Events 1 | . . . 1 . . . . . . . . . . . . Corruption 1 | . . . 1 . . . . . . . . . . . . Feedback Blocked . | . . . . . . . . . . . . . . . . Robot Schematics Acquired 5 | . . . . . . . . 5 . . . . . . . Robots Built . | . . . . . . . . . . . . . . . . Authchips . | . . . . . . . . . . . . . . . . Time . | . . . . . . . . . . . . . . . . Total Robot Build Rating . | . . . . . . . . . . . . . . . . Part Schematics Acquired 22 | . . . 2 . 2 . . 11 . 3 . . 4 . . Parts Built 7 | . . . . . 2 . . . . 5 . . . . . Authchips . | . . . . . . . . . . . . . . . . Time 337 | . . . . . 64 . . . . 273 . . . . . Total Part Build Rating 55 | . . . . . 16 . . . . 39 . . . . . Parts Repaired . | . . . . . . . . . . . . . . . . Time . | . . . . . . . . . . . . . . . . Parts Recycled . | . . . . . . . . . . . . . . . . Recycled Matter . | . . . . . . . . . . . . . . . . Retrieved Matter . | . . . . . . . . . . . . . . . . Retrieved Components 17 | . . . 4 . . . . . . 13 . . . . . Parts Scanalyzed 2 | . . . . . 1 . . . . 1 . . . . . Part Schematics Acquired 2 | . . . . . 1 . . . . 1 . . . . . Parts Damaged . | . . . . . . . . . . . . . . . . Bothacking | -11 -10 -10 -9 -9 -6 -6 -6 -6 -5 -5 -5 -5 -5 -4 -4 ------------ Run | Yrd Mat Sub Rec Scr Fac Low Low Dat Pro Fac Upp Upp Zhi Pro Fac Used RIF Installer . | . . . . . . . . . . . . . . . . Robots Hacked . | . . . . . . . . . . . . . . . . Non-combat . | . . . . . . . . . . . . . . . . Combat . | . . . . . . . . . . . . . . . . Robot Hacks Applied . | . . . . . . . . . . . . . . . . Relay Couplers Released . | . . . . . . . . . . . . . . . . Fabnet Peak Effective % . | . . . . . . . . . . . . . . . . Robots Rewired . | . . . . . . . . . . . . . . . . Allies Hacked . | . . . . . . . . . . . . . . . . Hacks Repelled . | . . . . . . . . . . . . . . . . Allies | -11 -10 -10 -9 -9 -6 -6 -6 -6 -5 -5 -5 -5 -5 -4 -4 -------- Run | Yrd Mat Sub Rec Scr Fac Low Low Dat Pro Fac Upp Upp Zhi Pro Fac Total Allies 3 | . . . . . 1 . . . . 2 . . . . . Largest Group 1 | . . . . . 1 . . . . 1 . . . . . Highest-Rated Group 26 | . . . . . 10 . . . . 26 . . . . . Highest-Rated Ally 26 | . . . . . 10 . . . . 26 . . . . . Total Orders 1 | . . . . . . . . . . 1 . . . . . STAY 1 | . . . . . . . . . . 1 . . . . . Ally Attacks . | . . . . . . . . . . . . . . . . Total Damage . | . . . . . . . . . . . . . . . . Kills . | . . . . . . . . . . . . . . . . Allies Corrupted . | . . . . . . . . . . . . . . . . Allies Melted . | . . . . . . . . . . . . . . . . Intel | -11 -10 -10 -9 -9 -6 -6 -6 -6 -5 -5 -5 -5 -5 -4 -4 ------- Run | Yrd Mat Sub Rec Scr Fac Low Low Dat Pro Fac Upp Upp Zhi Pro Fac Active Infowar (turns) 3343 | . . . . 584 701 97 118 19 62 548 253 398 88 210 265 Sensors 3291 | . . . . 584 701 97 118 19 62 546 208 398 84 210 264 Terrain 115 | . . . . . . . . . . 4 . 2 . . 109 Structural 1691 | . . . . 75 41 30 118 19 62 262 150 371 88 210 265 Seismic 654 | . . . . . 654 . . . . . . . . . . ECM 39 | . . . . . . . . . . . . . . . 39 Robot Analysis Total 16 | . . . . 8 4 . . . . . . . 4 . . Derelict Logs Recovered 4 | . . . . . . . 1 . 1 . 1 . . 1 . Drone Launches . | . . . . . . . . . . . . . . . . Drone Recoveries . | . . . . . . . . . . . . . . . . Exploration | -11 -10 -10 -9 -9 -6 -6 -6 -6 -5 -5 -5 -5 -5 -4 -4 ------------- Run | Yrd Mat Sub Rec Scr Fac Low Low Dat Pro Fac Upp Upp Zhi Pro Fac Turns Passed 5364 | 32 184 173 603 1600 701 97 118 19 62 550 264 398 88 210 265 Spaces Moved 9001 | 57 163 118 704 1926 1583 297 339 79 222 1445 491 407 164 405 601 Core 90 | 57 19 . . 14 . . . . . . . . . . . Treads . | . . . . . . . . . . . . . . . . Legs 1 | . 1 . . . . . . . . . . . . . . Wheels 2020 | . 143 118 704 1055 . . . . . . . . . . . Hover . | . . . . . . . . . . . . . . . . Flight 6890 | . . . . 857 1583 297 339 79 222 1445 491 407 164 405 601 Fastest Speed 20 | 50 50 80 80 32 22 24 24 24 24 20 27 27 27 27 20 Average Speed 44 | 50 94 95 80 81 25 24 24 24 26 24 27 27 27 27 25 Slowest Speed 120 | 50 120 100 80 114 28 28 24 24 28 28 27 27 27 27 32 Overloaded Moves 278 | . . . . . . . . . . 42 . . . . 236 Propulsion Burnouts . | . . . . . . . . . . . . . . . . Robots Hopped 28 | . . . . . 8 . . . . 16 . . . . 4 Potential Cave-ins . | . . . . . . . . . . . . . . . . Cave-ins Triggered . | . . . . . . . . . . . . . . . . Teleports 1 | . . . . . . . . . . . . . . . 1 Exploration Rate (%) 52 | 3 30 11 98 89 49 56 49 69 44 56 67 65 60 63 23 Regions Visited 15 Branch Regions 11 Pre-discovered Areas 17 | . . . 8 3 1 . . 1 . 1 . . 3 . . Known Exits Taken 11 | . . . . 1 1 1 1 1 1 1 1 1 1 1 . Unknown Exits Taken 4 | 1 1 1 1 . . . . . . . . . . . . Scrap Searched 20 | . . 3 . 7 . 3 2 . 1 . 1 1 . 2 . Spaces Dug 96 | . . . . . 31 1 3 . 1 24 6 3 . 7 20 Terrain Destroyed 140 | . 4 12 10 . 31 1 3 . 1 24 20 3 . 11 20 Melee 72 | . . . . . 31 1 3 . 1 15 1 1 . 2 17 Projectile 42 | . . . . . . . . . . 9 19 2 . 9 3 AOE 26 | . 4 12 10 . . . . . . . . . . . . Terrain Rammed . | . . . . . . . . . . . . . . . . Walls Destroyed . | . . . . . . . . . . . . . . . . Machines Disabled . | . . . . . . . . . . . . . . . . Actions | -11 -10 -10 -9 -9 -6 -6 -6 -6 -5 -5 -5 -5 -5 -4 -4 --------- Run | Yrd Mat Sub Rec Scr Fac Low Low Dat Pro Fac Upp Upp Zhi Pro Fac Total 10063 | 60 184 169 725 1970 1782 316 366 78 223 1553 592 686 189 492 678 Wait 726 | . . 37 10 . 123 16 22 . 1 44 75 271 . 77 50 Move 8934 | 56 162 118 703 1925 1567 296 338 78 221 1414 490 406 163 404 593 Hop 25 | . . . . . 7 . . . . 14 . . . . 4 Pick Up 44 | 4 6 1 1 10 11 . 1 . . 6 . . 2 . 2 Fast Attach 29 | . 8 . . 7 2 . . . . 5 . . 5 . 2 Attach 18 | . 1 . 1 2 9 1 . . . 2 . . . . 2 Detach 10 | . . . . 7 . . . . . 2 . . . . 1 Swap 41 | . 1 3 1 3 8 . . . . 13 3 4 2 . 3 Drop 45 | . 3 3 . 16 7 . . . . 9 . . 6 . 1 Fire 64 | . 3 7 9 . . . . . . 10 19 4 . 9 3 Melee 127 | . . . . . 48 3 5 . 1 34 5 1 11 2 17 Ram . | . . . . . . . . . . . . . . . . Kick . | . . . . . . . . . . . . . . . . Crush . | . . . . . . . . . . . . . . . . Escape Stasis . | . . . . . . . . . . . . . . . . Rewire . | . . . . . . . . . . . . . . . . Trap . | . . . . . . . . . . . . . . . . Miscellaneous . | . . . . . . . . . . . . . . . . Route ------- -11/Scrapyard -10/Materials (discovered 2 exits: [*Min] / [*Sub]) -10/Subcaves (discovered 3 exits: [*Mat x2] / *Rec) -9/Recycling (discovered 2 exits: [*Fac] / *Scr) -9/Scraptown (discovered 2 exits: *Fac x2) -6/Factory (discovered 5 exits: *Fac x3 / *Low x2) -6/Lower Caves -6/Lower Caves -6/Data Miner -5/Proximity Caves -5/Factory (discovered 3 exits: Fac / *Upp x2) -5/Upper Caves -5/Upper Caves (discovered 2 exits: *Fac / *Zhi) -5/Zhirov -4/Proximity Caves -4/Factory (discovered 2 exits: [*Res] / *Upp) History --------- Turn | Location | Event 7 | -11/Scrapyard | Discovered new exit (range 16) 33 | -11/Scrapyard | Entered Materials 34 | -10/Materials | Met a group of wandering Federalists 118 | -10/Materials | Discovered new exit (range 11) 215 | -10/Materials | Discovered new exit (range 3) 217 | -10/Materials | Entered Subcaves 218 | -10/Subcaves | Continued accompanying wandering Federalists (3) 218 | -10/Subcaves | Approached by a straggling Scientist 224 | -10/Subcaves | Discovered new exit (range 9) 315 | -10/Subcaves | Build established: Mutant 326 | -10/Subcaves | Discovered new exit (range 8) 385 | -10/Subcaves | Discovered new exit (range 6) 390 | -10/Subcaves | Entered Recycling 876 | -9/Recycling | Discovered new exit (range 15) 973 | -9/Recycling | Scanned before Scraplab entrance 985 | -9/Recycling | Entered Scraplab 992 | -9/Recycling | Discovered new exit (range 2) 993 | -9/Recycling | Entered Scraptown 993 | -9/Scraptown | System corruption cleaned by C-Scrubber 1082 | -9/Scraptown | Visited UFD Registry 1082 | -9/Scraptown | Registered with UFD as "Nanosplitter" 1093 | -9/Scraptown | Visited Observation Area 1108 | -9/Scraptown | Visited Fellowship of the Rings 1121 | -9/Scraptown | Visited Spacefarers 1142 | -9/Scraptown | Visited Cyclists 1147 | -9/Scraptown | Entered Cyclist Reading Room 1179 | -9/Scraptown | Visited The Evicted 1194 | -9/Scraptown | Visited Cave Peace 1222 | -9/Scraptown | Visited Bundlers 1418 | -9/Scraptown | Discovered new exit (range 13) 1444 | -9/Scraptown | Guru changed UFD alias to "Autolauncher" 1546 | -9/Scraptown | Visited Scrapoid Pod Storage 1568 | -9/Scraptown | Visited Abandonware Association 1580 | -9/Scraptown | Learned abandonware demo "HACKBUD.EXE" 1580 | -9/Scraptown | Learned abandonware demo "KABOOM.EXE" 1603 | -9/Scraptown | Visited Derelict Rescue Squad 1725 | -9/Scraptown | Visited Scrap Suit Storage 1754 | -9/Scraptown | Visited Analyses Database 1774 | -9/Scraptown | Visited Junk Repository 1803 | -9/Scraptown | Visited Scrapoid Research Area 1827 | -9/Scraptown | Visited Curators Association 1853 | -9/Scraptown | Visited Chapter 10 1918 | -9/Scraptown | Visited Cartography Club 2461 | -9/Scraptown | Found Deep Structural Scanner 2465 | -9/Scraptown | Learned location of Lower Caves (-7) 2465 | -9/Scraptown | Learned location of Hub_04(d) (-4) 2465 | -9/Scraptown | Learned 8 Materials zone layouts 2465 | -9/Scraptown | Learned 12 Factory zone layouts 2465 | -9/Scraptown | Learned 12 Research zone layouts 2465 | -9/Scraptown | Learned 12 Lower Caves zone layouts 2465 | -9/Scraptown | Learned 16 Lower Caves zone layouts 2465 | -9/Scraptown | Learned 20 Lower Caves zone layouts 2465 | -9/Scraptown | Learned 12 Proximity Caves zone layouts 2465 | -9/Scraptown | Learned 24 Proximity Caves zone layouts 2465 | -9/Scraptown | Learned location of 2 exits from Factory 2465 | -9/Scraptown | Learned location of 1 exit from Proximity Caves 2465 | -9/Scraptown | Learned location of 2 exits from Proximity Caves 2465 | -9/Scraptown | Identified exit to Factory 2530 | -9/Scraptown | Met Optimus 2530 | -9/Scraptown | Accepted into 0bPrime 2593 | -9/Scraptown | Entered Factory 2593 | -6/Factory | Evolved 8 slots: Propulsion x4, Utility x4 2594 | -6/Factory | Identified exit to Lower Caves 2594 | -6/Factory | Identified exit to Factory 2671 | -6/Factory | Fabricated Adv. Component Analysis Suite? 2993 | -6/Factory | Loaded intel: 8 recycling unit locations 3147 | -6/Factory | Build established: Hacker-Sprinter 3160 | -6/Factory | Learned location of Protoforge (-2) 3230 | -6/Factory | Discovered exit to Factory (range 5) 3294 | -6/Factory | Entered Lower Caves 3295 | -6/Lower Caves | Identified exit to Lower Caves 3391 | -6/Lower Caves | Entered another Lower Caves area 3392 | -6/Lower Caves | Identified exit to Data Miner 3399 | -6/Lower Caves | Found DCF Scrap (12 items) 3433 | -6/Lower Caves | Learned 8 Factory zone layouts 3509 | -6/Lower Caves | Entered Data Miner 3509 | -6/Data Miner | Discovered new exit (range 6) 3514 | -6/Data Miner | Met Data Miner 3519 | -6/Data Miner | Learned location of Section 7 (-2) 3519 | -6/Data Miner | Acquired the access code to Warlord's prototype stash 3522 | -6/Data Miner | Received God Mode back door access code from Data Miner 3528 | -6/Data Miner | Identified exit to Proximity Caves 3528 | -6/Data Miner | Entered Proximity Caves 3529 | -5/Proximity Caves | Learned 4 Factory zone layouts 3561 | -5/Proximity Caves | Spotter reported a threat 3562 | -5/Proximity Caves | Spotter reported a threat 3590 | -5/Proximity Caves | Entered Factory 3590 | -5/Factory | Evolved 2 slots: Propulsion x1, Utility x1 3591 | -5/Factory | Identified exit to Upper Caves 3592 | -5/Factory | Identified exit to Factory 3659 | -5/Factory | Loaded intel: 8 recycling unit locations 3729 | -5/Factory | Spotted B-75 Beast 3835 | -5/Factory | Fabricated Enh. Nova Cannon? 3937 | -5/Factory | Fabricated Lgt. Regenerative Plating? 3977 | -5/Factory | Fabricated Q-thruster? 4090 | -5/Factory | Learned location of Upper Caves (-4) 4140 | -5/Factory | Entered Upper Caves 4141 | -5/Upper Caves | Identified exit to Upper Caves 4163 | -5/Upper Caves | Learned Factory emergency access door positions 4311 | -5/Upper Caves | Attracted the attention of an 0b10 outpost 4404 | -5/Upper Caves | Entered another Upper Caves area 4424 | -5/Upper Caves | Discovered exit to Factory (range 13) 4718 | -5/Upper Caves | Build established: Hacker-Scout 4799 | -5/Upper Caves | Discovered new exit (range 8) 4801 | -5/Upper Caves | Identified exit to Zhirov 4802 | -5/Upper Caves | Entered Zhirov 4802 | -5/Zhirov | Discovered new exit (range 3) 4807 | -5/Zhirov | Met Zhirov 4813 | -5/Zhirov | Learned location of Quarantine (-2) 4813 | -5/Zhirov | Learned location of Testing (-3) 4813 | -5/Zhirov | Learned location of Command (-1) 4815 | -5/Zhirov | Zhirov requested help retrieving the SGEMP Prototype 4820 | -5/Zhirov | Found Alien Artifact 4820 | -5/Zhirov | Identified Integrated Reactor 4820 | -5/Zhirov | Installed Integrated Reactor, increased core energy generation (+10) 4829 | -5/Zhirov | Found Alien Artifact 4889 | -5/Zhirov | Identified exit to Proximity Caves 4890 | -5/Zhirov | Entered Proximity Caves 4917 | -4/Proximity Caves | Spotter reported a threat 5093 | -4/Proximity Caves | Learned Research non-interactive machine intel 5100 | -4/Proximity Caves | Entered Factory 5100 | -4/Factory | Evolved 2 slots: Propulsion x1, Utility x1 5130 | -4/Factory | Identified Transdimensional Reconstructor 5141 | -4/Factory | Loaded intel: 8 recycling unit locations 5161 | -4/Factory | Discovered new exit (range 14) 5165 | -4/Factory | Incoming investigation squad redirected 5174 | -4/Factory | Incoming investigation squad redirected 5215 | -4/Factory | Discovered new exit (range 12) 5217 | -4/Factory | Identified exit to Upper Caves 5320 | -4/Factory | Lost 4 parts (3n1w) 5364 | -4/Factory | Warped through subspace 5365 | -4/Factory | Self-destructed Last Messages --------------- Please expand to 4 more systems! >>Layout(Zone) Retrieving Zone 4C layout... Downloaded map data. >>Access(Emergency) Found 2 emergency access doors: (66,132) (71,156) Map updated. >>Alert(Purge) Purged threat record, alert level lowered. 05301_ K-01 Serf cleans the TF Node. 05309_ Acquired 15 matter. 05316_ U-05 Engineer builds a Wall. 05328_ Acquired Graphene Brace. 05353_ Penetrated by Slug. 05364_ Nuclear Pulse Thruster destroyed. 05364_ Warped through subspace. 05364_ O-16 Technician: "IFF HANDSHAKE FAILED. SECURING TERMINAL." Map ----- +----------------------------------------------------+ | ???????????? # ## # " ### #### # | | ???????????? ######/########## ##### #### # | | ????????????####### ########+##### ########### | | ????????????####### # """ # ########### | | ?????????????###### # """ "T" # ########### | | ??????????????????? + """ # ########### | | ??????????????????? # """ ] # ##########? | | ??????????????????? # # ##########? | | ??????!???????????? ##########/### ##########? | | ??????????????????? ## # ## ########### | | ??????????????????? ## = / " | | ??????????????????? ##= # ############## | | ??????????????????? ## ## ##############? | | ??????????????????? ## ## ##############? | | ??????????????????? ## ## ##############? | | ??????????????????? ########## #####?????????? | | ??????????????????? T######### ####??????????? | | ??????????????????? ######### ####??????????? | | ??????????????????? ##########+####??????????? | | ???????? ######## # A ##??????????? | | ???????? ######## # """ """" ####????????? | | ???????? ######## # "G """" ####????????? | | ????????" ######## # """ """" ####????????? | | ????????"" # # k """" ####????????? | | ????????S" # # """" ####????????? | | ????????"" # ??" """ o@ """" ####????????? | | ????????"" + ??" """ # !] """" + +???????? | | ?????????????????" """ # !! ####????????? | | ????????????????? ? # ! ####????????? | | ????????????????""???" # ####????????? | | ?????????????????????" # ! Y ####????????? | | ?????????????????????" ########## ######????????? | | ????????????????????? #################????????? | | ?????????????????????" #################????????? | | ?????????????????????" # ########????????? | | ???????????????????????????????? ######??????????? | | ?????????????????????????????????????????????????? | | ??????????????]??????????????????????????????????? | | ?????????????????????????????????????????????????? | | ?????????????????????????????????????????????????? | | ?????????????????????????????????????????????????? | | ?????????????????????????????????????????????????? | | ?????????????????????????????????????????????????? | | ?????????????????????????????????????????????????? | | ?????????????????????????????????????????????????? | | ?????????????????????????????????????????????????? | | ?????????????????????????????????????????????????? | | ?????????????????????????????????????????????????? | | ?????????????????????????????????????????????????? | | ?????????????????????????????????????????????????? | +----------------------------------------------------+ Best States ------------- Heat Dissipation 81 Energy Generation 33 Energy Capacity 300 Matter Stores 300 Matter Capacity 300 Sight Range 16 Robot Scan Range 16 Terrain Scan Range 20 Terrain Scan Density 10 ECM Strength 2 Power Amplification 20 Evasion (%) 66 Targeting Accuracy 5 Offensive Hacking 24 Defensive Hacking 14 Item Schematics ----------------- Component Analysis Suite | -9/Recycling | Hacked Hacking Suite | -9/Recycling | Hacked Adv. Sensor Array | -6/Factory | Hacked Mapping Drone Bay | -6/Factory | Scanalyzed Combat Drone Bay | -6/Data Miner | Free Lgt. Regenerative Plating | -6/Data Miner | Free Enh. Armored Leg | -6/Data Miner | Free Prc. Energy Filter | -6/Data Miner | Free Kinetic Spear | -6/Data Miner | Free Myomer Leg | -6/Data Miner | Free Imp. System Guard | -6/Data Miner | Free HERF Cannon | -6/Data Miner | Free Force Lance | -6/Data Miner | Free Q-thruster | -6/Data Miner | Free Lgt. Antimatter Reactor | -6/Data Miner | Free Adv. Transmission Jammer | -5/Factory | Hacked Adv. Terrain Scan Processor | -5/Factory | Scanalyzed Fusion Bomb Launcher | -5/Factory | Hacked Assault Drone Bay | -5/Zhirov | Free Exp. Heat Sink | -5/Zhirov | Free Exp. Optical Array | -5/Zhirov | Free Imp. Arc Thrower | -5/Zhirov | Free Robot Schematics ------------------ B-48 Gladiator | -6/Data Miner | Free A-15 Conveyor | -6/Data Miner | Free S-27 Virus | -6/Data Miner | Free B-60 Warrior | -6/Data Miner | Free O-32 Director | -6/Data Miner | Free Fabricated ------------ Adv. Component Analysis Suite | x2 | -6/Factory | Preloaded Enh. Nova Cannon | x2 | -5/Factory | Preloaded Lgt. Regenerative Plating | x1 | -5/Factory Q-thruster | x2 | -5/Factory Repaired ---------- Nothing Alien Tech Used ----------------- Integrated Reactor Transdimensional Reconstructor Achievements -------------- None Challenges ------------ None Game ------ Seed AlphaDimensionalScreen Manual? 0 Play Time 01:25:49 Cumulative 119.7 hours Start 2025.08.20 @ 01:50:11 End 2025.08.20 @ 03:13:01 Sessions 1 Manual Loads 0 Difficulty Rogue Special Mode None Game No. 56 Rogue 56 Adventurer 0 Explorer 0 Win Type - Total 1 Types 0/0/1/0/0/0/0/0/0/0 Lore% 73 Gallery% 60 Achievement% 76 Wizard Run 0 Options --------- Layout 2 ASCII 0 Keyboard 1 Movement Vi Keybinds 0 Fullscreen 1 Font 28/SwanstonBold Map View 50x52 Zoom Use 0% Tactical HUD 1 Map Filters NONE Filters NONE Steam 1 RUN: f06571ed-1ed0-4fb4-b6cf-b2ea10e78b3c